[Event "Slovakia Chess Open 2024"]
[Site "Modra"]
[Date "2024.03.02"]
[Round "2.3"]
[White "Petrik, Matus"]
[Black "Shirinyan, Daniel"]
[Result "1/2-1/2"]
[ECO "A17"]
[WhiteElo "1812"]
[BlackElo "2177"]
[Annotator "RC"]
[PlyCount "97"]
[EventDate "2024.02.29"]
[EventType "swiss"]
[EventCountry "SVK"]
[SourceTitle "playchess.com"]
[Source "ChessBase"]
[SourceQuality "1"]
[TimeControl "5400+30"]

1. c4 {[%emt 0:19:04]} Nf6 {[%emt 0:00:14]} 2. Nc3 {[%emt 0:00:06]} e6 {[%emt 0:00:26]} 3. g3 {[%emt 0:00:13]} d5 {[%emt 0:00:45]} 4. Bg2 {[%emt 0:01:00]} h6 {[%emt 0:00:48]} 5. d3 {[%emt 0:01:29]} dxc4 {[%emt 0:09:20]} 6. Qa4+ {[%emt 0:00:47]} Bd7 {[%emt 0:00:25]} 7. Qxc4 {[%emt 0:00:11]} Bc6 {[%emt 0:00:04]} 8. Nf3 {[%emt 0:00:50]} Nbd7 {[%emt 0:00:23]} 9. b4 {[%emt 0:00:42]} a6 {[%emt 0:01:27]} 10. O-O {[%emt 0:03:46]} Bd6 {[%emt 0:12:37]} 11. Bb2 {[%emt 0:00:37]} O-O {[%emt 0:01:24]} 12. Rfc1 {[%emt 0:07:06]} Bxf3 {[%emt 0:01:24]} 13. exf3 {[%emt 0:00:54]} Ne5 {[%emt 0:00:32]} 14. Qd4 {[%emt 0:01:06]} Nc6 {[%emt 0:00:40]} 15. Qe3 {[%emt 0:01:15]} Nxb4 {[%emt 0:00:17]} 16. Ne4 {[%emt 0:01:02]} Be7 {[%emt 0:00:30]} 17. Rc4 {[%emt 0:02:45]} a5 {[%emt 0:23:29]} 18. d4 {[%emt 0:19:48]} Nbd5 {[%emt 0:07:58]} 19. Qc1 {[%emt 0:02:14]} Rc8 {[%emt 0:02:58]} 20. f4 {[%emt 0:00:21]} b6 {[%emt 0:01:57]} 21. Qc2 {[%emt 0:11:06]} Qd7 {[%emt 0:03:38]} 22. Bh3 {[%emt 0:00:31]} Nb4 {[%emt 0:03:35]} 23. Qe2 {[%emt 0:03:31]} Nbd5 {[%emt 0:09:14]} 24. Qf3 {[%emt 0:01:28]} g6 {[%emt 0:06:06]} 25. Rac1 {[%emt 0:04:28]} Nxe4 {[%emt 0:00:16]} 26. Qxe4 {[%emt 0:00:04]} Bf6 {[%emt 0:00:20]} 27. Rc6 {[%emt 0:02:31]} Rfe8 {[%emt 0:00:20]} 28. a4 {[%emt 0:03:46]} Nb4 {[%emt 0:00:37]} 29. R6c4 {[%emt 0:00:19]} c5 {[%emt 0:00:43]} 30. Rd1 {[%emt 0:00:57]} Qxa4 {[%emt 0:04:30]} 31. Qe2 {[%emt 0:00:29]} Rcd8 {[%emt 0:00:41]} 32. Ra1 {[%emt 0:00:04]} Qb5 {[%emt 0:00:50]} 33. Bf1 {[%emt 0:01:08]} cxd4 {[%emt 0:00:53]} 34. Qd2 {[%emt 0:01:37]} Qf5 {[%emt 0:04:56]} 35. Bxd4 {[%emt 0:02:05]} b5 {[%emt 0:00:44]} 36. Qb2 {[%emt 0:01:04]} Rxd4 {[%emt 0:02:08]} 37. Rxd4 {[%emt 0:00:11]} Nc6 {[%emt 0:00:39]} 38. Qxb5 {[%emt 0:00:43]} Bxd4 {[%emt 0:01:05]} 39. Rc1 {[%emt 0:01:02]} Qxb5 {[%emt 0:00:34]} 40. Bxb5 {[%emt 0:00:02]} Rb8 {[%emt 0:00:19]} 41. Bxc6 {[%emt 0:00:06]} Rb2 {[%emt 0:00:05]} 42. Rd1 {[%emt 0:02:33]} Bxf2+ {[%emt 0:00:04]} 43. Kh1 {[%emt 0:00:56]} Bc5 {[%emt 0:00:27]} 44. Rd8+ {[%emt 0:00:21]} Kg7 {[%emt 0:00:03]} 45. Rd7 {[%emt 0:00:26]} Kf6 {[%emt 0:01:47]} 46. Rc7 {[%emt 0:00:19]} h5 {[%emt 0:00:43]} 47. Ba4 {[%emt 0:00:52]} h4 {[%emt 0:00:33]} 48. Rxc5 {[%emt 0:00:34]} h3 {[%emt 0:00:10]} 49. Rc1 {[%emt 0:00:11]} 1/2-1/2

[Event "Slovakia Chess Open 2024"]
[Site "Modra"]
[Date "2024.03.02"]
[Round "2.4"]
[White "Stevik, Patrik"]
[Black "Kukla, Tomas"]
[Result "1-0"]
[ECO "D11"]
[WhiteElo "2167"]
[BlackElo "1864"]
[Annotator "RC"]
[PlyCount "63"]
[EventDate "2024.02.29"]
[EventType "swiss"]
[EventCountry "SVK"]
[SourceTitle "playchess.com"]
[Source "ChessBase"]
[SourceQuality "1"]
[TimeControl "5400+30"]

1. d4 {[%emt 0:00:03]} d5 {[%emt 0:00:16]} 2. c4 {[%emt 0:00:02]} c6 {[%emt 0:00:06]} 3. Nf3 {[%emt 0:00:10]} Nf6 {[%emt 0:00:23]} 4. g3 {[%emt 0:00:44]} Bf5 {[%emt 0:05:18]} 5. Bg2 {[%emt 0:01:07]} e6 {[%emt 0:00:22]} 6. O-O {[%emt 0:00:12]} Nbd7 {[%emt 0:01:38]} 7. Nc3 {[%emt 0:03:54]} Be7 {[%emt 0:04:22]} 8. Nh4 {[%emt 0:01:48]} Bg4 {[%emt 0:02:03]} 9. h3 {[%emt 0:00:36]} Bh5 {[%emt 0:00:26]} 10. cxd5 {[%emt 0:03:44]} Nxd5 {[%emt 0:03:18]} 11. Nf3 {[%emt 0:00:42]} O-O {[%emt 0:03:37]} 12. e4 {[%emt 0:00:50]} Nxc3 {[%emt 0:01:10]} 13. bxc3 {[%emt 0:00:15]} c5 {[%emt 0:01:25]} 14. Qb3 {[%emt 0:01:13]} b6 {[%emt 0:03:27]} 15. Bf4 {[%emt 0:01:57]} Rc8 {[%emt 0:04:01]} 16. Qa4 {[%emt 0:05:32]} Nf6 {[%emt 0:07:58]} 17. Ne5 {[%emt 0:02:42]} a5 {[%emt 0:09:57]} 18. Rab1 {[%emt 0:04:00]} Be2 {[%emt 0:02:32]} 19. Rfe1 {[%emt 0:00:24]} b5 {[%emt 0:00:15]} 20. Qc2 {[%emt 0:00:42]} Bc4 {[%emt 0:06:17]} 21. Nxc4 {[%emt 0:00:32]} bxc4 {[%emt 0:00:22]} 22. d5 {[%emt 0:00:16]} exd5 {[%emt 0:01:58]} 23. exd5 {[%emt 0:00:48]} Nh5 {[%emt 0:01:50]} 24. Bd2 {[%emt 0:01:36]} Bd6 {[%emt 0:01:42]} 25. Qe4 {[%emt 0:01:53]} f5 {[%emt 0:03:59]} 26. Qe2 {[%emt 0:03:20]} Nf6 {[%emt 0:12:24]} 27. Qe6+ {[%emt 0:00:11]} Kh8 {[%emt 0:00:11]} 28. Qxf5 {[%emt 0:00:06]} Qc7 {[%emt 0:01:59]} 29. Re6 {[%emt 0:03:00]} Rf7 {[%emt 0:03:58]} 30. Rxd6 {[%emt 0:01:02]} g6 {[%emt 0:04:26]} 31. Qf4 {[%emt 0:01:14]} Rcf8 {[%emt 0:02:42]} 32. Rxf6 {[%emt 0:00:10]} 1-0

[Event "Slovakia Chess Open 2024"]
[Site "Modra"]
[Date "2024.03.02"]
[Round "2.5"]
[White "Palka, Miroslav"]
[Black "Banas, Kamil"]
[Result "0-1"]
[ECO "D48"]
[WhiteElo "1780"]
[BlackElo "2162"]
[Annotator "RC"]
[PlyCount "54"]
[EventDate "2024.02.29"]
[EventType "swiss"]
[EventCountry "SVK"]
[SourceTitle "playchess.com"]
[Source "ChessBase"]
[SourceQuality "1"]
[TimeControl "5400+30"]

1. c4 {[%emt 0:00:09]} e6 {[%emt 0:00:12]} 2. Nc3 {[%emt 0:00:25]} d5 {[%emt 0:00:05]} 3. d4 {[%emt 0:00:10]} c6 {[%emt 0:01:24]} 4. e3 {[%emt 0:01:59]} Nf6 {[%emt 0:00:34]} 5. Nf3 {[%emt 0:00:22]} Nbd7 {[%emt 0:00:59]} 6. Bd3 {[%emt 0:00:40]} dxc4 {[%emt 0:00:27]} 7. Bxc4 {[%emt 0:00:13]} b5 {[%emt 0:00:11]} 8. Bd3 {[%emt 0:02:15]} a6 {[%emt 0:01:09]} 9. O-O {[%emt 0:00:37]} Bb7 {[%emt 0:04:48]} 10. Ne4 {[%emt 0:05:16]} Nxe4 {[%emt 0:06:09]} 11. Bxe4 {[%emt 0:00:08]} Nf6 {[%emt 0:00:23]} 12. Bd3 {[%emt 0:04:44]} c5 {[%emt 0:01:37]} 13. Be2 {[%emt 0:03:08]} Qb6 {[%emt 0:03:15]} 14. b3 {[%emt 0:02:54]} Rd8 {[%emt 0:11:55]} 15. Bb2 {[%emt 0:00:54]} Be7 {[%emt 0:01:35]} 16. Qc1 {[%emt 0:05:10]} Rc8 {[%emt 0:02:42]} 17. Rd1 {[%emt 0:05:26]} O-O {[%emt 0:01:26]} 18. Qd2 {[%emt 0:03:25]} c4 {[%emt 0:03:15]} 19. Rdc1 {[%emt 0:07:06]} Ne4 {[%emt 0:05:29]} 20. Qe1 {[%emt 0:00:25]} c3 {[%emt 0:03:55]} 21. Bxc3 {[%emt 0:00:33]} Nxc3 {[%emt 0:01:04]} 22. Rxc3 {[%emt 0:00:07]} Bb4 {[%emt 0:00:14]} 23. Rxc8 {[%emt 0:00:19]} Bxe1 {[%emt 0:00:05]} 24. Rxf8+ {[%emt 0:00:24]} Kxf8 {[%emt 0:00:02]} 25. Rxe1 {[%emt 0:04:03]} Qa5 {[%emt 0:00:37]} 26. Rc1 {[%emt 0:03:24]} Qxa2 {[%emt 0:00:52]} 27. Bf1 {[%emt 0:01:09]} Bxf3 {[%emt 0:05:53]} 0-1

[Event "Slovakia Chess Open 2024"]
[Site "Modra"]
[Date "2024.03.02"]
[Round "2.6"]
[White "Galla, Richard"]
[Black "Pietrucha, Jaroslaw"]
[Result "1-0"]
[ECO "C41"]
[WhiteElo "1975"]
[BlackElo "1781"]
[Annotator "NA RC"]
[PlyCount "89"]
[EventDate "2024.02.29"]
[EventType "swiss"]
[EventCountry "SVK"]
[SourceTitle "playchess.com"]
[Source "ChessBase"]
[SourceQuality "1"]
[TimeControl "5400+30"]

1. e4 {[%emt 0:00:22]} e5 {[%emt 0:00:57]} 2. Nf3 {[%emt 0:00:16]} d6 {[%emt 0:01:27]} 3. d4 {[%emt 0:00:08]} exd4 {[%emt 0:00:33]} 4. Nxd4 {[%emt 0:00:04]} Nf6 {[%emt 0:00:50]} 5. Nc3 {[%emt 0:00:29]} Be7 {[%emt 0:01:00]} 6. g3 {[%emt 0:00:07]} Bd7 {[%emt 0:00:33] C41: Philidor Defence.} 7. Bg2 {[%emt 0:00:09]} Nc6 {[%emt 0:01:43]} 8. Nde2 {[%emt 0:00:05]} Qc8 {[%emt 0:04:29]} 9. Nf4 {[%emt 0:04:04]} h6 {[%emt 0:05:33]} 10. b3 {[%emt 0:01:47]} Ne5 {[%emt 0:01:19]} 11. Bb2 {[%emt 0:02:54]} Bc6 {[%emt 0:01:17]} 12. Qd2 {[%emt 0:05:46]} a5 {[%emt 0:18:32]} 13. a4 {[%emt 0:00:39]} Bd7 {[%emt 0:21:04]} (13... Qg4 $142) 14. Ncd5 {[%emt 0:09:17]} Nxd5 {[%emt 0:01:12]} 15. Nxd5 {[%emt 0:00:15]} f6 {[%emt 0:02:44]} 16. f4 {[%emt 0:04:50]} Nc6 {[%emt 0:00:42]} 17. h3 {[%emt 0:05:18]} Be6 {[%emt 0:01:37]} 18. O-O-O {[%emt 0:02:03]} Qd7 {[%emt 0:04:06]} 19. Rhe1 {[%emt 0:07:26]} O-O-O {[%emt 0:00:53]} 20. f5 {[%emt 0:12:56]} Bf7 {[%emt 0:00:51]} 21. Bc3 {[%emt 0:00:35]} b6 {[%emt 0:01:22]} 22. Qd3 {[%emt 0:01:59]} Bxd5 {[%emt 0:01:23]} 23. Qxd5 {[%emt 0:01:55]} Nb8 {[%emt 0:04:31]} 24. e5 {[%emt 0:04:43]} c6 {[%emt 0:00:42]} 25. Qd4 {[%emt 0:01:07]} c5 {[%emt 0:01:29]} 26. Qc4 {[%emt 0:03:31]} fxe5 {[%emt 0:01:32]} 27. Rxe5 {[%emt 0:01:24]} Bf6 {[%emt 0:02:13]} 28. Re6 {[%emt 0:00:56]} Bxc3 {[%emt 0:02:26]} 29. Qxc3 $18 {[%emt 0:00:03]} Qc7 {[%emt 0:01:52]} 30. Rg6 {[%emt 0:02:50]} Rd7 {[%emt 0:00:28]} 31. f6 {[%emt 0:02:09]} gxf6 {[%emt 0:01:05]} 32. Qxf6 {[%emt 0:00:14]} Rhd8 {[%emt 0:01:38]} 33. Rxh6 {[%emt 0:00:41]} Na6 {[%emt 0:02:56]} 34. h4 {[%emt 0:02:46]} Kb8 {[%emt 0:00:24]} 35. Qf1 {[%emt 0:01:01]} Ka7 {[%emt 0:01:17]} 36. Rh5 {[%emt 0:03:32]} Rf7 {[%emt 0:00:50]} 37. Rf5 {[%emt 0:01:06]} Rdf8 {[%emt 0:00:38]} 38. Rxf7 {[%emt 0:00:30]} Rxf7 {[%emt 0:00:35]} 39. Qd3 {[%emt 0:01:40]} Rd7 {[%emt 0:04:07]} 40. Qd5 {[%emt 0:00:52]} Qb8 {[%emt 0:00:47]} 41. c3 {[%emt 0:01:33]} Qh8 {[%emt 0:02:16]} 42. Kc2 {[%emt 0:01:48]} Qb8 {[%emt 0:01:11]} 43. Qc6 {[%emt 0:01:38]} Qe8 {[%emt 0:01:40]} 44. Rd2 {[%emt 0:01:34]} Qd8 {[%emt 0:02:03]} 45. Rxd6 {[%emt 0:00:57]} 1-0

[Event "Slovakia Chess Open 2024"]
[Site "Modra"]
[Date "2024.03.02"]
[Round "2.7"]
[White "Oruzinsky, Juraj"]
[Black "Bucor, Mark"]
[Result "1/2-1/2"]
[ECO "B12"]
[WhiteElo "2160"]
[BlackElo "1852"]
[Annotator "ChessBase"]
[PlyCount "89"]
[EventDate "2024.02.29"]
[EventType "swiss"]
[EventCountry "SVK"]
[SourceTitle "playchess.com"]
[Source "ChessBase"]
[SourceQuality "1"]
[TimeControl "5400+30"]

1. e4 {[%emt 0:00:08]} c6 {[%emt 0:00:53]} 2. d4 {[%emt 0:00:07]} d5 {[%emt 0:00:07]} 3. f3 {[%emt 0:00:06]} dxe4 {[%emt 0:00:06]} 4. fxe4 {[%emt 0:00:08]} e5 {[%emt 0:00:09]} 5. Nf3 {[%emt 0:00:06]} Bg4 {[%emt 0:00:07]} 6. c3 {[%emt 0:02:00]} Nf6 {[%emt 0:02:55]} 7. Bc4 {[%emt 0:07:31]} Nbd7 {[%emt 0:28:16]} 8. Qb3 {[%emt 0:12:21]} Bh5 {[%emt 0:00:15]} 9. Ng5 {[%emt 0:05:20]} Qe7 {[%emt 0:00:11]} 10. Qxb7 {[%emt 0:02:00]} Rb8 {[%emt 0:05:32]} 11. Qxc6 {[%emt 0:02:34]} exd4 {[%emt 0:00:10]} 12. cxd4 {[%emt 0:15:57]} h6 {[%emt 0:07:21]} 13. Nf3 {[%emt 0:00:44]} Qxe4+ {[%emt 0:09:36]} 14. Qxe4+ {[%emt 0:00:16]} Nxe4 {[%emt 0:00:06]} 15. O-O {[%emt 0:02:26]} Be7 {[%emt 0:05:59]} 16. Bd3 {[%emt 0:04:02]} Ng5 {[%emt 0:03:09]} 17. Nxg5 {[%emt 0:10:14]} hxg5 {[%emt 0:00:12]} 18. Nc3 {[%emt 0:05:40]} O-O {[%emt 0:05:37]} 19. Nd5 {[%emt 0:06:40]} Bd8 {[%emt 0:01:00]} 20. Bf5 {[%emt 0:07:46]} Nf6 {[%emt 0:02:10]} 21. Ne3 {[%emt 0:02:58]} Bb6 {[%emt 0:00:50]} 22. g4 {[%emt 0:01:37]} Bg6 {[%emt 0:00:33]} 23. Bxg6 {[%emt 0:01:08]} fxg6 {[%emt 0:00:08]} 24. Rd1 {[%emt 0:02:57]} Rfd8 {[%emt 0:01:29]} 25. h3 {[%emt 0:01:07]} Rxd4 {[%emt 0:09:00]} 26. Rxd4 {[%emt 0:01:08]} Bxd4 {[%emt 0:01:19]} 27. Kf1 {[%emt 0:00:29]} Bxb2 {[%emt 0:00:29]} 28. Rb1 {[%emt 0:00:32]} Be5 {[%emt 0:00:09]} 29. Rxb8+ {[%emt 0:00:07]} Bxb8 {[%emt 0:00:07]} 30. Ke2 {[%emt 0:02:35]} Ne4 {[%emt 0:04:47]} 31. Nd5 {[%emt 0:00:48]} Bf4 {[%emt 0:04:37]} 32. Bxf4 {[%emt 0:02:44]} gxf4 {[%emt 0:00:17]} 33. Nxf4 {[%emt 0:00:13]} Nc3+ {[%emt 0:00:12]} 34. Kd3 {[%emt 0:00:21]} Nxa2 {[%emt 0:00:23]} 35. Nxg6 {[%emt 0:00:07]} Nc1+ {[%emt 0:00:53]} 36. Kd2 {[%emt 0:02:09]} Nb3+ {[%emt 0:00:38]} 37. Kc3 {[%emt 0:00:13]} Nc5 {[%emt 0:01:57]} 38. Ne5 {[%emt 0:00:31]} Kh7 {[%emt 0:02:15]} 39. h4 {[%emt 0:00:37]} Ne6 {[%emt 0:01:19]} 40. Nc6 {[%emt 0:00:50]} g5 {[%emt 0:00:50]} 41. h5 {[%emt 0:00:47]} Nf4 {[%emt 0:00:23]} 42. Nxa7 {[%emt 0:00:33]} Nxh5 {[%emt 0:00:08]} 43. Nc6 {[%emt 0:00:19]} Nf6 {[%emt 0:00:11]} 44. Ne5 {[%emt 0:00:06]} Nxg4 {[%emt 0:00:10]} 45. Nxg4 {[%emt 0:00:07]} 1/2-1/2

[Event "Slovakia Chess Open 2024"]
[Site "Modra"]
[Date "2024.03.02"]
[Round "2.9"]
[White "Visvader, Kristof"]
[Black "Li, Geng Hui"]
[Result "1-0"]
[ECO "C02"]
[WhiteElo "1696"]
[BlackElo "1555"]
[Annotator "NA RC"]
[PlyCount "63"]
[EventDate "2024.02.29"]
[EventType "swiss"]
[EventCountry "SVK"]
[SourceTitle "playchess.com"]
[Source "ChessBase"]
[SourceQuality "1"]
[TimeControl "5400+30"]

1. e4 {[%emt 0:00:03]} e6 {[%emt 0:01:04]} 2. d4 {[%emt 0:00:21]} d5 {[%emt 0:00:13]} 3. e5 {[%emt 0:00:14]} c5 {[%emt 0:01:08]} 4. c3 {[%emt 0:00:15]} Nc6 {[%emt 0:00:26]} 5. Nf3 {[%emt 0:00:35]} Nge7 {[%emt 0:02:14]} 6. a3 {[%emt 0:02:04]} Qb6 {[%emt 0:00:25]} 7. b4 {[%emt 0:00:30]} cxd4 {[%emt 0:01:30]} 8. cxd4 {[%emt 0:00:10]} Nf5 {[%emt 0:00:20]} 9. Bb2 {[%emt 0:05:57]} Be7 {[%emt 0:01:19]} 10. Be2 {[%emt 0:02:15]} Bd7 {[%emt 0:02:39]} 11. O-O {[%emt 0:00:38]} Rc8 {[%emt 0:02:31]} 12. Qd3 {[%emt 0:01:28]} Na5 {[%emt 0:01:10]} 13. Nbd2 {[%emt 0:04:01]} Nc4 {[%emt 0:01:55]} 14. Nxc4 {[%emt 0:02:25]} Rxc4 {[%emt 0:00:30]} 15. Qd2 {[%emt 0:03:39]} Rc7 {[%emt 0:03:15]} 16. Rfc1 {[%emt 0:02:18]} O-O {[%emt 0:00:33]} 17. Bd3 {[%emt 0:00:30]} Rfc8 {[%emt 0:05:53]} 18. h3 {[%emt 0:06:07]} h6 {[%emt 0:19:09]} 19. g4 {[%emt 0:04:53]} Nh4 {[%emt 0:00:26]} 20. Nxh4 {[%emt 0:00:10]} Bxh4 {[%emt 0:00:05]} 21. f4 {[%emt 0:00:52]} Be7 {[%emt 0:03:46]} 22. g5 {[%emt 0:01:39]} hxg5 {[%emt 0:05:45]} 23. fxg5 {[%emt 0:00:57]} g6 {[%emt 0:00:21]} 24. Rf1 {[%emt 0:07:38]} Kg7 {[%emt 0:03:09]} 25. Qf4 {[%emt 0:02:01]} Rf8 {[%emt 0:01:23]} 26. Qh4 {[%emt 0:13:05]} Rh8 {[%emt 0:19:19]} 27. Rxf7+ {[%emt 0:01:20]} Kg8 {[%emt 0:00:09]} 28. Qf2 {[%emt 0:00:42]} Be8 {[%emt 0:01:40]} 29. Rf1 {[%emt 0:02:27]} Qc6 {[%emt 0:05:14]} 30. Rxe7 {[%emt 0:01:10]} Rxe7 {[%emt 0:00:31]} 31. Qf8+ {[%emt 0:00:06]} Kh7 {[%emt 0:00:08]} 32. Qh6+ {[%emt 0:00:05]} 1-0

[Event "Slovakia Chess Open 2024"]
[Site "Modra"]
[Date "2024.03.02"]
[Round "2.10"]
[White "Chojnacki, Kevin"]
[Black "Smetana, Peter"]
[Result "1-0"]
[ECO "A04"]
[WhiteElo "1672"]
[BlackElo "1993"]
[Annotator "NA RC"]
[PlyCount "101"]
[EventDate "2024.02.29"]
[EventType "swiss"]
[EventCountry "SVK"]
[SourceTitle "playchess.com"]
[Source "ChessBase"]
[SourceQuality "1"]
[TimeControl "5400+30"]

1. Nf3 {[%emt 0:00:10]} c5 {[%emt 0:00:12]} 2. b3 {[%emt 0:00:27]} Nc6 {[%emt 0:00:38]} 3. Bb2 {[%emt 0:00:01]} d6 {[%emt 0:00:35]} 4. d4 {[%emt 0:01:25]} cxd4 {[%emt 0:00:35]} 5. Nxd4 {[%emt 0:00:02]} Nf6 {[%emt 0:02:13]} 6. Nxc6 {[%emt 0:00:42] A04: Unusual lines after 1 Nf3 and King's Indian Attack.} bxc6 {[%emt 0:00:14]} 7. c4 {[%emt 0:00:10]} e5 {[%emt 0:02:06]} 8. g3 {[%emt 0:00:41]} Be7 {[%emt 0:01:47]} 9. Bg2 {[%emt 0:02:06]} Qc7 {[%emt 0:02:10]} 10. O-O {[%emt 0:00:48]} O-O {[%emt 0:02:01]} 11. Nc3 {[%emt 0:00:02]} Bb7 {[%emt 0:01:45]} 12. Rc1 {[%emt 0:00:10]} Rad8 {[%emt 0:06:43]} 13. e4 {[%emt 0:01:09]} Bc8 {[%emt 0:11:59]} 14. Kh1 {[%emt 0:03:20]} Nd7 {[%emt 0:14:57]} 15. b4 {[%emt 0:00:54]} Qb6 {[%emt 0:04:08]} 16. Qb3 {[%emt 0:03:14]} Nf6 {[%emt 0:04:05]} 17. a4 {[%emt 0:07:29]} Be6 {[%emt 0:08:13]} 18. a5 {[%emt 0:08:54]} Qa6 {[%emt 0:09:17]} 19. b5 {[%emt 0:03:38]} Qxa5 {[%emt 0:01:11]} 20. bxc6 {[%emt 0:05:41]} Rb8 {[%emt 0:03:06]} 21. Qc2 {[%emt 0:05:15]} Qc5 {[%emt 0:04:21]} 22. Nd5 {[%emt 0:00:38]} Bd8 {[%emt 0:01:44]} 23. f4 {[%emt 0:02:41]} Ng4 {[%emt 0:01:57]} 24. Qe2 {[%emt 0:13:49]} Qxc6 {[%emt 0:02:27]} 25. f5 {[%emt 0:00:12]} Bxd5 {[%emt 0:00:43]} 26. cxd5 {[%emt 0:00:13]} Qb6 {[%emt 0:00:31]} 27. Ba3 $11 {[%emt 0:01:46]} Ne3 {[%emt 0:13:11]} 28. Bxd6 {[%emt 0:02:39]} Nxf1 {[%emt 0:00:30]} 29. Bxb8 {[%emt 0:00:04]} Nxg3+ {[%emt 0:00:19]} 30. hxg3 {[%emt 0:00:09]} Qxb8 {[%emt 0:00:12]} 31. Bf1 {[%emt 0:03:40]} Qb3 {[%emt 0:01:11]} 32. Qd3 {[%emt 0:01:18]} Qxd3 {[%emt 0:00:25]} 33. Bxd3 {[%emt 0:00:02]} Bb6 {[%emt 0:00:25]} 34. Bb5 {[%emt 0:02:34]} Rd8 {[%emt 0:00:38]} 35. Kg2 {[%emt 0:01:12]} Kf8 {[%emt 0:00:35]} 36. Rc6 {[%emt 0:02:45]} Ke7 {[%emt 0:00:44]} 37. g4 {[%emt 0:01:51]} h6 {[%emt 0:00:28]} 38. Kf3 {[%emt 0:01:33]} Rd6 {[%emt 0:00:08]} 39. Rc8 {[%emt 0:03:48]} Rd8 {[%emt 0:00:09]} 40. Rc6 {[%emt 0:00:48]} Ba5 {[%emt 0:00:55]} 41. Ra6 {[%emt 0:02:44]} Bb6 {[%emt 0:00:10]} 42. Bc6 {[%emt 0:00:02]} Kd6 {[%emt 0:00:30]} 43. Ke2 {[%emt 0:01:25]} Rh8 {[%emt 0:00:33]} 44. Ra1 {[%emt 0:00:31]} Rb8 {[%emt 0:00:37]} 45. Rc1 {[%emt 0:03:08]} Bc5 {[%emt 0:00:09]} 46. Rc4 {[%emt 0:03:23]} Rb3 {[%emt 0:01:09]} 47. Be8 {[%emt 0:02:04]} Rg3 {[%emt 0:00:51]} 48. Bxf7 {[%emt 0:00:41]} Rxg4 {[%emt 0:00:04]} 49. Kf3 {[%emt 0:01:57]} Rg1 {[%emt 0:00:47]} 50. Bh5 {[%emt 0:02:07]} Rg5 {[%emt 0:00:36]} 51. Bg6 {[%emt 0:03:27]} 1-0

[Event "Slovakia Chess Open 2024"]
[Site "Modra"]
[Date "2024.03.02"]
[Round "2.11"]
[White "Pisarcik, Richard"]
[Black "Hasala, Richard"]
[Result "1-0"]
[ECO "C52"]
[WhiteElo "1855"]
[BlackElo "1935"]
[Annotator "NA"]
[PlyCount "61"]
[EventDate "2024.02.29"]
[EventType "swiss"]
[EventCountry "SVK"]
[SourceTitle "playchess.com"]
[Source "ChessBase"]
[SourceQuality "1"]
[TimeControl "5400+30"]

1. e4 {[%emt 0:00:17]} e5 {[%emt 0:00:14]} 2. Nf3 {[%emt 0:00:07]} Nc6 {[%emt 0:00:09]} 3. Bc4 {[%emt 0:00:09]} Bc5 {[%emt 0:00:12]} 4. b4 {[%emt 0:00:18]} Bxb4 {[%emt 0:00:06]} 5. c3 {[%emt 0:00:06]} Ba5 {[%emt 0:00:03]} 6. d4 {[%emt 0:00:37]} d6 {[%emt 0:00:49]} 7. Qb3 {[%emt 0:08:33]} Qd7 {[%emt 0:00:09]} 8. O-O {[%emt 0:04:14]} Bb6 {[%emt 0:03:25]} 9. dxe5 {[%emt 0:06:51]} Na5 {[%emt 0:03:08]} 10. Qb4 {[%emt 0:04:14]} Nxc4 {[%emt 0:00:13]} 11. Qxc4 {[%emt 0:00:08]} dxe5 {[%emt 0:00:06]} 12. Nxe5 {[%emt 0:01:39]} Qe6 {[%emt 0:00:15]} 13. Bf4 {[%emt 0:04:51]} f6 {[%emt 0:01:11]} 14. Qa4+ {[%emt 0:01:53]} c6 {[%emt 0:08:47]} 15. Nc4 {[%emt 0:08:58]} Bc5 {[%emt 0:00:06] [#]} 16. Nba3 $11 {[%emt 0:06:24]} ({Better is} 16. Nbd2 $1 $16) 16... Bd7 {[%emt 0:24:09]} 17. Rad1 {[%emt 0:04:25]} b5 {[%emt 0:17:05]} 18. Qa5 {[%emt 0:01:31]} Ne7 {[%emt 0:06:53]} 19. Nd6+ {[%emt 0:07:40]} Kf8 {[%emt 0:01:20]} 20. c4 {[%emt 0:01:29]} g5 {[%emt 0:01:21]} 21. Bg3 {[%emt 0:06:28]} h5 {[%emt 0:04:26]} 22. Nb7 {[%emt 0:02:37]} Bb6 {[%emt 0:03:36]} 23. Qc3 {[%emt 0:02:26]} Nc8 {[%emt 0:14:28]} 24. c5 {[%emt 0:05:05]} h4 {[%emt 0:02:42]} 25. Bd6+ {[%emt 0:00:15]} Kf7 {[%emt 0:00:43]} 26. cxb6 {[%emt 0:00:50]} axb6 {[%emt 0:00:04]} 27. Bc7 {[%emt 0:01:25]} Kg7 {[%emt 0:03:02]} 28. Nd6 {[%emt 0:00:37]} Ra4 {[%emt 0:02:26]} 29. Nc2 {[%emt 0:03:04]} Ra7 {[%emt 0:00:36]} 30. Nd4 {[%emt 0:02:05]} Qe5 {[%emt 0:00:22]} 31. N6f5+ {[%emt 0:01:06]} 1-0